fUST/lending_fUST_20250419
["ID","MTS","AMOUNT","RATE_DAILY","PERIOD"]
[358368819,1745004632601,-300.0,0.00018447,2]
[358368820,1745004632610,-300.0,0.00018447,2]
[358368821,1745004632620,-49641.11709312,0.00018448,2]
[358368822,1745004632629,-1832.51095765,0.00018448,2]
[358368823,1745004632638,-1832.51095765,0.00018448,2]
[358368824,1745004632648,-1832.51095765,0.00018448,2]
[358368825,1745004632657,-1832.51095765,0.00018448,2]
[358368826,1745004632667,-1832.51095765,0.00018448,2]
[358368827,1745004632677,-1832.51095765,0.00018448,2]
[358368838,1745004632688,-1832.51095765,0.00018448,2]
[358368839,1745004632885,-1832.51095765,0.00018448,2]
[358368840,1745004632895,-1832.51095765,0.00018448,2]
[358368841,1745004632906,-1832.51095765,0.00018448,2]
[358368842,1745004632916,-1832.51095765,0.00018448,2]
[358368843,1745004632927,-1832.51095765,0.00018448,2]
[358368844,1745004632937,-1832.51095765,0.00018448,2]
[358368845,1745004632947,-1832.51095765,0.00018448,2]
[358368846,1745004632956,-1832.51095765,0.00018448,2]
[358368847,1745004632966,-1832.51095765,0.00018448,2]
[358368848,1745004632975,-1832.51095765,0.00018448,2]
[358368849,1745004632985,-1832.51095765,0.00018448,2]
[358368850,1745004632994,-1832.51095765,0.00018448,2]
[358368851,1745004633004,-1832.51095765,0.00018448,2]
[358368852,1745004633013,-1832.51095765,0.00018448,2]
[358368853,1745004633023,-1832.51095765,0.00018448,2]
[358368854,1745004633032,-1832.51095765,0.00018448,2]
[358368855,1745004633042,-1832.51095765,0.00018448,2]
[358368856,1745004633052,-1832.51095765,0.00018448,2]
[358368857,1745004633062,-1832.51095765,0.00018448,2]
[358368858,1745004633073,-1832.51095765,0.00018448,2]
[358368859,1745004633082,-1832.51095765,0.00018448,2]
[358368860,1745004633092,-1832.51095765,0.00018448,2]
[358368861,1745004633102,-1832.51095765,0.00018448,2]
[358368862,1745004633111,-1832.51095765,0.00018448,2]
[358368863,1745004633121,-1832.51095765,0.00018448,2]
[358368864,1745004633131,-1832.51095765,0.00018448,2]
[358368865,1745004633141,-1832.51095765,0.00018448,2]
[358368866,1745004633151,-1832.51095765,0.00018448,2]
[358368867,1745004633161,-1691.39097547,0.00018448,2]
[358368873,1745004638622,-141.11998218,0.00018448,2]
[358368874,1745004638631,-1832.51095765,0.00018448,2]
[358368875,1745004638641,-1832.51095765,0.00018448,2]
[358368876,1745004638650,-1832.51095765,0.00018448,2]
[358368877,1745004638660,-1832.51095765,0.00018448,2]
[358368878,1745004638670,-1832.51095765,0.00018448,2]
[358368879,1745004638679,-1832.51095765,0.00018448,2]
[358368880,1745004638689,-1832.51095765,0.00018448,2]
[358368881,1745004638698,-1832.51095765,0.00018448,2]
[358368882,1745004638707,-1832.51095765,0.00018448,2]
[358368883,1745004638717,-1832.51095765,0.00018448,2]
[358368884,1745004638726,-1832.51095765,0.00018448,2]
[358368885,1745004638736,-1832.51095765,0.00018448,2]
[358368886,1745004638745,-1695.85573202,0.00018448,2]
[358368887,1745004638807,-136.65522563,0.00018448,2]
[358368888,1745004638817,-1832.51095765,0.00018448,2]
[358368889,1745004638826,-1832.51095765,0.00018448,2]
[358368890,1745004638836,-1832.51095765,0.00018448,2]
[358368891,1745004638846,-1832.51095765,0.00018448,2]
[358368892,1745004638855,-1832.51095765,0.00018448,2]
[358368893,1745004638865,-1973.88129234,0.00018448,2]
[358368894,1745004638874,-1973.88129234,0.00018448,2]
[358368895,1745004638883,-1973.88129234,0.00018448,2]
[358368896,1745004638892,-1973.88129234,0.00018448,2]
[358368897,1745004638901,-1973.88129234,0.00018448,2]
[358368898,1745004638911,-1973.88129234,0.00018448,2]
[358368899,1745004638920,-1973.88129234,0.00018448,2]
[358368900,1745004638929,-1973.88129234,0.00018448,2]
[358368901,1745004638939,-1973.88129234,0.00018448,2]
[358368902,1745004638948,-1973.88129234,0.00018448,2]
[358368903,1745004638957,-1973.88129234,0.00018448,2]
[358368904,1745004638966,-1973.88129234,0.00018448,2]
[358368905,1745004638975,-1973.88129234,0.00018448,2]
[358368906,1745004638984,-1973.88129234,0.00018448,2]
[358368907,1745004638993,-1973.88129234,0.00018448,2]
[358368908,1745004639003,-1973.88129234,0.00018448,2]
[358368909,1745004639012,-1973.88129234,0.00018448,2]
[358368910,1745004639021,-1973.88129234,0.00018448,2]
[358368911,1745004639030,-1973.88129234,0.00018448,2]
[358368912,1745004639040,-1973.88129234,0.00018448,2]
[358368913,1745004639049,-1973.88129234,0.00018448,2]
[358368914,1745004639058,-1973.88129234,0.00018448,2]
[358368915,1745004639067,-1973.88129234,0.00018448,2]
[358368916,1745004639077,-1973.88129234,0.00018448,2]
[358368917,1745004639086,-1973.88129234,0.00018448,2]
[358368918,1745004639096,-1973.88129234,0.00018448,2]
[358368919,1745004639105,-1973.88129234,0.00018448,2]
[358368920,1745004639115,-1973.88129234,0.00018448,2]
[358368921,1745004639125,-1973.88129234,0.00018448,2]
[358368922,1745004639134,-1973.88129234,0.00018448,2]
[358368923,1745004639143,-1973.88129234,0.00018448,2]
[358368924,1745004639153,-1973.88129232,0.00018448,2]
[358368925,1745004639163,-1973.88129232,0.00018448,2]
[358368926,1745004639174,-1973.88129232,0.00018448,2]
[358368927,1745004639183,-1973.88129232,0.00018448,2]
[358368928,1745004639193,-1973.88129232,0.00018448,2]
[358368929,1745004639204,-151.0,0.00018448,2]
[358368930,1745004639213,-32620.85756884,0.00018449,2]
[358368931,1745004639223,-152.0,0.000185,2]
[358368932,1745004639232,-32620.85756883,0.00018501,2]
[358368933,1745004639242,-151.0,0.00018501,2]
[358368934,1745004639251,-151.0,0.00018539,2]
[358368935,1745004639261,-473.4213317,0.00018548,2]
[358368936,1745004639271,-151.0,0.00018549,2]
[358368937,1745004639281,-298.903274,0.0001855,2]
[358368938,1745004639290,-32620.85756883,0.00018553,2]
[358368939,1745004639299,-500.0,0.00018573,2]
[358368940,1745004639309,-500.0,0.00018573,2]
[358368941,1745004639320,-500.0,0.00018573,2]
[358368942,1745004639329,-151.0,0.00018578,2]
[358368943,1745004639338,-151.0,0.00018578,2]
[358368944,1745004639348,-151.0,0.00018578,2]
[358368945,1745004639357,-151.0,0.00018578,2]
[358368946,1745004639366,-151.0,0.00018604,2]
[358368947,1745004639375,-32620.85756883,0.00018605,2]
[358368948,1745004639385,-500.79029034,0.00018622,2]
[358368949,1745004639394,-500.0,0.00018622,2]
[358368950,1745004639404,-500.0,0.00018622,2]
[358368951,1745004639413,-160.28228392,0.00018622,2]
[358368952,1745004639423,-500.0,0.00018622,2]
[358368953,1745004639432,-500.0,0.00018622,2]
[358368954,1745004639441,-504.50474721,0.00018622,2]
[358368955,1745004639450,-466.41514671,0.00018622,2]
[358368956,1745004639459,-419.0476228,0.00018622,2]
[358368957,1745004639468,-200.58314362,0.00018622,2]
[358368958,1745004639478,-500.0,0.00018622,2]
[358368959,1745004639487,-500.0,0.00018622,2]
[358368960,1745004639497,-500.0,0.00018622,2]
[358368961,1745004639506,-502.22098383,0.00018622,2]
[358368962,1745004639516,-270.65261405,0.00018622,2]
[358368963,1745004639525,-500.0,0.00018622,2]
[358368964,1745004639535,-294.43345104,0.00018622,2]
[358368965,1745004639544,-170.116416,0.00018622,2]
[358368966,1745004639554,-500.0,0.00018622,2]
[358368967,1745004639563,-500.0,0.00018622,2]
[358368968,1745004639572,-500.0,0.00018622,2]
[358368969,1745004639581,-500.84443937,0.00018622,2]
[358368970,1745004639590,-500.0,0.00018622,2]
[358368971,1745004639599,-222.63563093,0.00018622,2]
[358368972,1745004639608,-503.03549967,0.00018622,2]
[358368973,1745004639617,-500.0,0.00018622,2]
[358368974,1745004639627,-504.09717339,0.00018622,2]
[358368975,1745004639637,-500.0,0.00018622,2]
[358368976,1745004639646,-500.0,0.00018622,2]
[358368977,1745004639656,-151.0,0.00018631,2]
[358368978,1745004639666,-151.0,0.00018631,2]
[358368979,1745004639675,-501.58469979,0.00018638,2]
[358368980,1745004639685,-153.06679291,0.00018638,2]
[358368981,1745004639695,-500.0,0.00018638,2]
[358368982,1745004639705,-501.57118886,0.00018638,2]
[358368983,1745004639715,-500.0,0.00018638,2]
[358368984,1745004639725,-500.0,0.00018638,2]
[358368985,1745004639734,-500.0,0.00018638,2]
[358368986,1745004639745,-1000.0,0.0001865,2]
[358368987,1745004639755,-151.0,0.00018652,2]
[358368988,1745004639767,-151.0,0.00018653,2]
[358368989,1745004639778,-32620.85756883,0.00018657,2]
[358368990,1745004639787,-501.59082768,0.00018673,2]
[358368991,1745004639797,-500.0,0.00018673,2]
[358368992,1745004639809,-505.21330194,0.00018673,2]
[358368993,1745004639819,-204.280975,0.00018683,2]
[358368994,1745004639829,-160.27990964,0.00018683,2]
[358368995,1745004639840,-500.0,0.00018683,2]
[358368996,1745004639850,-500.0,0.00018683,2]
[358368997,1745004639860,-500.0,0.00018683,2]
[358368998,1745004639869,-535.36241178,0.00018683,2]
[358368999,1745004639879,-500.33223139,0.00018686,2]
[358369000,1745004639888,-500.0,0.00018686,2]
[358369001,1745004639898,-500.0,0.00018686,2]
[358369002,1745004639907,-159.61042,0.00018749,2]
[358369003,1745004639917,-22186.51092391,0.0001875,2]
[358369004,1745004639927,-1363.87351405,0.0001875,3]
[358369005,1745004639939,-176.344676,0.0001875,2]
[358369006,1745004639948,-151.0,0.0001875,2]
[358369007,1745004639958,-151.0,0.0001875,2]
[358369008,1745004639968,-151.0,0.0001875,2]
[358369009,1745004639977,-151.0,0.0001875,2]
[358369010,1745004639987,-151.0,0.0001875,2]
[358369011,1745004639997,-151.0,0.0001875,2]
[358369012,1745004640007,-153523.09718062,0.0001875,2]
[358369013,1745004640017,-496.21733159,0.00018757,2]
[358369014,1745004640187,-585.68183752,0.00018757,2]
[358369015,1745004640198,-500.0,0.00018757,2]
[358369016,1745004640210,-501.86311999,0.00018773,2]
[358369017,1745004640219,-151.0,0.00018773,2]
[358369018,1745004640229,-161.41803922,0.00018773,2]
[358369019,1745004640239,-198.0,0.00018773,2]
[358369020,1745004640249,-151.0,0.00018773,2]
[358369021,1745004640259,-151.0,0.00018773,2]
[358369022,1745004640269,-533.65189726,0.000189,2]
[358369023,1745004640279,-283.36178073,0.0001891,2]
[358369024,1745004640289,-151.0,0.0001891,2]
[358369025,1745004640299,-151.0,0.0001891,2]
[358369026,1745004640309,-3141.9,0.00018935,2]
[358369027,1745004640318,-151.0,0.00019047,2]
[358369028,1745004640328,-273.96221173,0.00019047,2]
[358369029,1745004640338,-300.0,0.00019178,2]
[358369030,1745004640348,-246.1253313,0.00019184,2]
[358369031,1745004640358,-1758.16364549,0.000192,2]
[358369032,1745004640368,-4489.6114299,0.00019329,2]
[358369033,1745004640378,-1758.16364524,0.00019728,2]
[358369034,1745004640388,-635.81859831,0.00019728,2]
[358369035,1745004640398,-151.0,0.00019908,2]
[358369036,1745004640407,-11890.18270032,0.00019977,2]
[358369037,1745004640417,-357.70914486,0.0002,2]
[358369038,1745004640427,-23209.5993592,0.0002,2]
[358369039,1745004640436,-1178.89452923,0.0002,2]
[358369040,1745004640445,-2000.0,0.0002,4]
[358369041,1745004640454,-160.0,0.00020047,2]
[358369042,1745004640464,-839.29847495,0.00020047,2]
[358369043,1745004640473,-160.0,0.00020049,2]
[358369044,1745004640483,-160.0,0.0002005,2]
[358369045,1745004640493,-420.0,0.00020119,2]
[358369046,1745004640502,-420.0,0.00020217,2]
[358369047,1745004640512,-1758.16364524,0.00020555,2]
[358369048,1745004640522,-600.0,0.00020822,2]
[358369049,1745004640532,-175.4275601,0.00020932,2]
[358369050,1745004640542,-392.54,0.00021,2]
[358369051,1745004640552,-50895.61066453,0.00021,2]
[358369052,1745004640562,-151.0,0.00021,2]
[358369053,1745004640571,-151.0,0.00021,2]
[358369054,1745004640581,-151.0,0.00021,2]
[358369055,1745004640591,-2000.0,0.00021,4]
[358369056,1745004640601,-1430.75399024,0.00021187,2]
[358369057,1745004640611,-151.0,0.00021277,2]
[358369058,1745004640621,-1758.16364524,0.00021383,3]
[358369059,1745004640631,-528.7124759,0.00021697,2]
[358369060,1745004640640,-57385.54878904,0.0002178,2]
[358369061,1745004640649,-151.0,0.0002178,2]
[358369062,1745004640659,-151.0,0.0002178,2]
[358369063,1745004640668,-151.0,0.0002178,2]
[358369064,1745004640678,-633.0,0.000218,2]
[358369065,1745004640687,-160.0,0.00021813,2]
[358369066,1745004640697,-7459.60363996,0.00021818,2]
[358369067,1745004640706,-420.40766787,0.00021818,2]
[358369068,1745004640716,-701.31385002,0.00021841,2]
[358369069,1745004640726,-183.55798869,0.00021899,2]
[358369071,1745004640737,-26739.73429573,0.000219,2]
[358369073,1745004640746,-281912.012424,0.000219,2]
[358369075,1745004640756,-100000.0,0.000219,2]
[358369077,1745004640770,-531.76,0.000219,2]
[358369079,1745004640780,-200.0,0.000219,2]
[358369081,1745004640790,-200.0,0.000219,2]
[358369083,1745004640799,-151.0,0.000219,120]
[358369085,1745004640810,-169.0,0.00021906,2]
[358369087,1745004640820,-359.0,0.00021906,2]
[358369089,1745004640829,-359.0,0.00021906,2]
[358369091,1745004640840,-319.0,0.00021909,2]
[358369093,1745004640851,-317.0,0.00021909,2]
[358369095,1745004640861,-359.0,0.00021909,2]
[358369097,1745004640870,-359.0,0.00021909,2]
[358369099,1745004640880,-359.0,0.00021909,2]
[358369101,1745004640889,-500.0,0.00021917,2]
[358369103,1745004640899,-500.0,0.00021917,2]
[358369106,1745004640909,-356.38833606,0.00021917,2]
[358369108,1745004640919,-500.0,0.00021917,2]
[358369110,1745004640930,-500.0,0.00021917,2]
[358369112,1745004640939,-244.86472793,0.00021917,2]
[358369113,1745004640949,-500.0,0.00021917,2]
[358369116,1745004640959,-500.0,0.00021917,2]
[358369117,1745004640969,-500.0,0.00021917,2]
[358369118,1745004640978,-500.0,0.00021917,2]
[358369119,1745004640988,-500.0,0.00021917,2]
[358369120,1745004640998,-500.0,0.00021917,2]
[358369121,1745004641007,-1305.12,0.00021917,2]
[358369122,1745004641017,-500.0,0.00021917,2]
[358369123,1745004641026,-616.82,0.00021917,2]
[358369124,1745004641037,-500.0,0.00021917,2]
[358369125,1745004641046,-500.0,0.00021917,2]
[358369126,1745004641056,-500.0,0.00021917,2]
[358369127,1745004641066,-500.0,0.00021917,2]
[358369128,1745004641075,-800.01,0.00021917,2]
[358369129,1745004641085,-500.0,0.00021917,2]
[358369130,1745004641095,-500.0,0.00021917,2]
[358369131,1745004641105,-964.31,0.00021917,2]
[358369132,1745004641114,-500.0,0.00021917,2]
[358369133,1745004641124,-500.0,0.00021917,2]
[358369134,1745004641133,-500.0,0.00021917,2]
[358369135,1745004641143,-983.04,0.00021917,2]
[358369136,1745004641153,-500.0,0.00021917,2]
[358369137,1745004641163,-831.83,0.00021917,2]
[358369138,1745004641173,-500.0,0.00021917,2]
[358369140,1745004641182,-500.0,0.00021917,2]
[358369141,1745004641191,-500.0,0.00021917,2]
[358369143,1745004641200,-500.0,0.00021917,2]
[358369145,1745004641210,-500.0,0.00021917,2]
[358369147,1745004641219,-500.0,0.00021917,2]
[358369149,1745004641229,-500.0,0.00021917,2]
[358369151,1745004641238,-500.0,0.00021917,2]
[358369153,1745004641247,-500.0,0.00021917,2]
[358369155,1745004641257,-500.0,0.00021917,2]
[358369157,1745004641267,-526.27,0.00021917,2]
[358369159,1745004641276,-500.0,0.00021917,2]
[358369161,1745004641286,-500.0,0.00021917,2]
[358369162,1745004641295,-500.0,0.00021917,2]
[358369165,1745004641305,-500.0,0.00021917,2]
[358369167,1745004641314,-1069.19,0.00021917,2]
[358369168,1745004641324,-500.0,0.00021917,2]
[358369169,1745004641334,-500.0,0.00021917,2]
[358369170,1745004641344,-500.0,0.00021917,2]
[358369171,1745004641354,-500.0,0.00021917,2]
[358369172,1745004641363,-500.0,0.00021917,2]
[358369173,1745004641372,-538.15,0.00021917,2]
[358369174,1745004641382,-500.0,0.00021917,2]
[358369175,1745004641391,-351.99703767,0.00021917,2]
[358369176,1745004641401,-500.0,0.00021917,2]
[358369177,1745004641411,-500.0,0.00021917,2]
[358369178,1745004641420,-503.96,0.00021917,2]
[358369179,1745004641429,-500.0,0.00021917,2]
[358369180,1745004641439,-500.0,0.00021917,2]
[358369181,1745004641448,-500.0,0.00021917,2]
[358369182,1745004641458,-500.0,0.00021917,2]
[358369183,1745004641468,-500.0,0.00021917,2]
[358369184,1745004641477,-508.02,0.00021917,2]
[358369185,1745004641487,-500.0,0.00021917,2]
[358369186,1745004641497,-500.0,0.00021917,2]
[358369187,1745004641507,-1058.07,0.00021917,2]
[358369188,1745004641516,-500.0,0.00021917,2]
[358369189,1745004641526,-500.0,0.00021917,2]
[358369190,1745004641535,-500.0,0.00021917,2]
[358369191,1745004641545,-500.0,0.00021917,2]
[358369192,1745004641555,-500.0,0.00021917,2]
[358369193,1745004641564,-500.0,0.00021917,2]
[358369194,1745004641574,-500.0,0.00021917,2]
[358369195,1745004641583,-500.0,0.00021917,2]
[358369196,1745004641593,-500.0,0.00021917,2]
[358369197,1745004641603,-502.64389879,0.00021917,2]
[358369198,1745004641613,-500.0,0.00021917,2]
[358369199,1745004641623,-500.0,0.00021917,2]
[358369200,1745004641632,-500.0,0.00021917,2]
[358369201,1745004641641,-554.19,0.00021917,2]
[358369202,1745004641650,-500.0,0.00021917,2]
[358369203,1745004641660,-609.75,0.00021917,2]
[358369204,1745004641670,-500.0,0.00021917,2]
[358369205,1745004641679,-505.57543779,0.00021917,2]
[358369206,1745004641689,-500.0,0.00021917,2]
[358369207,1745004641698,-500.0,0.00021917,2]
[358369208,1745004641707,-500.0,0.00021917,2]
[358369209,1745004641717,-500.0,0.00021917,2]
[358369210,1745004641726,-500.0,0.00021917,2]
[358369211,1745004641746,-267.24,0.00021917,2]
[358369212,1745004641757,-500.0,0.00021917,2]
[358369213,1745004641770,-532.19,0.00021917,2]
[358369214,1745004641780,-532.33276372,0.00021917,2]
[358369215,1745004641790,-802.82,0.00021917,2]
[358369216,1745004641801,-500.0,0.00021917,2]
[358369217,1745004641811,-500.0,0.00021917,2]
[358369218,1745004641822,-540.70776944,0.00021917,2]
[358369219,1745004641832,-582.69,0.00021917,2]
[358369220,1745004641842,-500.0,0.00021917,2]
[358369221,1745004641853,-1100.77,0.00021917,2]
[358369222,1745004641863,-500.0,0.00021917,2]
[358369223,1745004641873,-913.08,0.00021917,2]
[358369224,1745004641883,-500.0,0.00021917,2]
[358369225,1745004641893,-500.0,0.00021917,2]
[358369226,1745004641904,-500.0,0.00021917,2]
[358369227,1745004641915,-500.0,0.00021917,2]
[358369228,1745004641925,-1598.62,0.00021917,2]
[358369229,1745004641935,-501.29161316,0.00021917,2]
[358369230,1745004641945,-527.24030997,0.00021917,2]
[358369231,1745004641955,-500.0,0.00021917,2]
[358369232,1745004641965,-500.0,0.00021917,2]
[358369233,1745004641975,-258.00511641,0.00021917,2]
[358369234,1745004641985,-926.55,0.00021917,2]
[358369235,1745004641995,-1019.24,0.00021917,2]
[358369236,1745004642005,-500.0,0.00021917,2]
[358369237,1745004642015,-500.0,0.00021917,2]
[358369238,1745004642025,-500.0,0.00021917,2]
[358369239,1745004642035,-500.0,0.00021917,2]
[358369240,1745004642044,-500.0,0.00021917,2]
[358369241,1745004642054,-500.0,0.00021917,2]
[358369242,1745004642064,-500.0,0.00021917,2]
[358369243,1745004642073,-500.0,0.00021917,2]
[358369244,1745004642084,-556.48,0.00021917,2]
[358369245,1745004642093,-500.0,0.00021917,2]
[358369246,1745004642103,-503.19275022,0.00021917,2]
[358369247,1745004642113,-500.0,0.00021917,2]
[358369248,1745004642123,-500.0,0.00021917,2]
[358369249,1745004642134,-500.0,0.00021917,2]
[358369250,1745004642143,-534.75401099,0.00021917,2]
[358369251,1745004642154,-501.26110351,0.00021917,2]
[358369252,1745004642163,-500.0,0.00021917,2]
[358369253,1745004642174,-500.0,0.00021917,2]
[358369254,1745004642184,-1425.18,0.00021917,2]
[358369255,1745004642194,-500.0,0.00021917,2]
[358369256,1745004642203,-500.0,0.00021917,2]
[358369257,1745004642213,-500.0,0.00021917,2]
[358369258,1745004642224,-500.0,0.00021917,2]
[358369259,1745004642234,-500.0,0.00021917,2]
[358369260,1745004642244,-503.7709124,0.00021917,2]
[358369261,1745004642254,-500.0,0.00021917,2]
[358369262,1745004642264,-500.0,0.00021917,2]
[358369263,1745004642273,-500.0,0.00021917,2]
[358369264,1745004642283,-500.0,0.00021917,2]
[358369265,1745004642293,-500.0,0.00021917,2]
[358369266,1745004642303,-500.0,0.00021917,2]
[358369267,1745004642313,-500.0,0.00021917,2]
[358369268,1745004642323,-500.0,0.00021917,2]
[358369269,1745004642333,-500.0,0.00021917,2]
[358369270,1745004642343,-772.88,0.00021917,2]
[358369271,1745004642354,-500.0,0.00021917,2]
[358369272,1745004642368,-584.62,0.00021917,2]
[358369273,1745004642378,-503.78015953,0.00021917,2]
[358369274,1745004642389,-3073.67,0.00021917,2]
[358369275,1745004642399,-503.31844986,0.00021917,2]
[358369276,1745004642409,-500.13,0.00021917,2]
[358369277,1745004642420,-500.0,0.00021917,2]
[358369278,1745004642430,-500.0,0.00021917,2]
[358369279,1745004642440,-500.0,0.00021917,2]
[358369280,1745004642451,-974.58,0.00021917,2]
[358369281,1745004642462,-500.0,0.00021917,2]
[358369282,1745004642474,-500.0,0.00021917,2]
[358369283,1745004642484,-500.0,0.00021917,2]
[358369284,1745004642494,-500.0,0.00021917,2]
[358369285,1745004642504,-500.0,0.00021917,2]
[358369286,1745004642514,-500.0,0.00021917,2]
[358369287,1745004642524,-500.0,0.00021917,2]
[358369288,1745004642534,-453.83,0.00021917,2]
[358369289,1745004642545,-500.0,0.00021917,2]
[358369290,1745004642555,-704.16,0.00021917,2]
[358369291,1745004642565,-500.0,0.00021917,2]
[358369292,1745004642575,-500.0,0.00021917,2]
[358369293,1745004642586,-481.76977124,0.00021917,2]
[358369294,1745004642596,-623.34,0.00021917,2]
[358369295,1745004642606,-528.14,0.00021917,2]
[358369296,1745004642616,-500.0,0.00021917,2]
[358369297,1745004642626,-500.0,0.00021917,2]
[358369298,1745004642636,-500.0,0.00021917,2]
[358369299,1745004642646,-607.09,0.00021917,2]
[358369300,1745004642656,-625.87767993,0.00021917,2]
[358369301,1745004642666,-606.90462905,0.00021917,2]
[358369302,1745004642676,-500.0,0.00021917,2]
[358369303,1745004642686,-1301.5,0.00021917,2]
[358369304,1745004642696,-500.0,0.00021917,2]
[358369305,1745004642706,-500.0,0.00021917,2]
[358369306,1745004642715,-608.95,0.00021917,2]
[358369307,1745004642728,-500.0,0.00021917,2]
[358369308,1745004642742,-1668.18,0.00021917,2]
[358369309,1745004642752,-500.0,0.00021917,2]
[358369310,1745004642762,-500.0,0.00021917,2]
[358369311,1745004642776,-501.64669596,0.00021917,2]
[358369312,1745004642786,-565.46791515,0.00021917,2]
[358369313,1745004642796,-766.01,0.00021917,2]
[358369314,1745004642806,-500.0,0.00021917,2]
[358369315,1745004642819,-500.0,0.00021917,2]
[358369316,1745004642828,-710.97,0.00021917,2]
[358369317,1745004642838,-500.0,0.00021917,2]
[358369318,1745004642850,-500.0,0.00021917,2]
[358369319,1745004642860,-500.0,0.00021917,2]
[358369320,1745004642870,-500.0,0.00021917,2]
[358369321,1745004642880,-1036.13,0.00021917,2]
[358369322,1745004642891,-718.88,0.00021917,2]
[358369323,1745004642901,-500.0,0.00021917,2]
[358369324,1745004642912,-500.0,0.00021917,2]
[358369325,1745004642925,-500.0,0.00021917,2]
[358369326,1745004642935,-1141.16,0.00021917,2]
[358369327,1745004642946,-500.0,0.00021917,2]
[358369328,1745004642956,-500.0,0.00021917,2]
[358369329,1745004642965,-500.0,0.00021917,2]
[358369330,1745004642975,-523.85,0.00021917,2]
[358369331,1745004642985,-500.0,0.00021917,2]
[358369332,1745004642995,-500.0,0.00021917,2]
[358369333,1745004643005,-500.0,0.00021917,2]
[358369334,1745004643015,-755.12,0.00021917,2]
[358369335,1745004643025,-920.65,0.00021917,2]
[358369336,1745004643035,-500.0,0.00021917,2]
[358369337,1745004643045,-500.0,0.00021917,2]
[358369338,1745004643055,-500.0,0.00021917,2]
[358369339,1745004643066,-500.0,0.00021917,2]
[358369340,1745004643076,-500.0,0.00021917,2]
[358369341,1745004643086,-500.0,0.00021917,2]
[358369342,1745004643096,-500.0,0.00021917,2]
[358369343,1745004643107,-1222.46,0.00021917,2]
[358369344,1745004643117,-500.0,0.00021917,2]
[358369345,1745004643128,-500.0,0.00021917,2]
[358369346,1745004643139,-500.0,0.00021917,2]
[358369347,1745004643151,-733.9,0.00021917,2]
[358369348,1745004643162,-500.0,0.00021917,2]
[358369350,1745004643177,-500.0,0.00021917,2]
[358369352,1745004643188,-500.0,0.00021917,2]
[358369354,1745004643200,-600.68,0.00021917,2]
[358369355,1745004643211,-500.0,0.00021917,2]
[358369356,1745004643222,-500.0,0.00021917,2]
[358369357,1745004643232,-500.0,0.00021917,2]
[358369358,1745004643242,-4521.69,0.00021917,2]
[358369359,1745004643254,-500.0,0.00021917,2]
[358369360,1745004643265,-500.0,0.00021917,2]
[358369361,1745004643275,-500.0,0.00021917,2]
[358369362,1745004643285,-500.0,0.00021917,2]
[358369363,1745004643295,-822.47,0.00021917,2]
[358369364,1745004643306,-500.0,0.00021917,2]
[358369366,1745004643317,-500.0,0.00021917,2]
[358369368,1745004643327,-500.0,0.00021917,2]
[358369370,1745004643517,-840.01,0.00021917,2]
[358369371,1745004643528,-593.3,0.00021917,2]
[358369372,1745004643538,-500.0,0.00021917,2]
[358369373,1745004643547,-500.0,0.00021917,2]
[358369374,1745004643557,-500.0,0.00021917,2]
[358369375,1745004643567,-500.0,0.00021917,2]
[358369376,1745004643577,-895.29,0.00021917,2]
[358369377,1745004643587,-500.0,0.00021917,2]